bitfinex/quotes_ETHUSD_20250422
["timestamp","ask_amount","ask_price","bid_price","bid_amount"]
[1745350037747,4.45530128,1695.9,1695.5,5.098]
[1745350037936,2.8765447,1695.9,1695.5,5.098]
[1745350038136,5.89693092,1695.8,1695.4,3.7545]
[1745350038359,5.89693092,1695.8,1695.5,5.099]
[1745350038767,8.77326203,1695.9,1695.5,11.01342197]
[1745350039074,2.8765447,1695.9,1695.5,11.01342197]
[1745350039279,8.77316068,1695.9,1695.5,11.01342197]
[1745350039483,8.77316068,1695.9,1695.5,5.91442197]
[1745350039771,8.77316068,1695.9,1695.5,11.01342197]
[1745350040161,2.8765447,1695.9,1695.5,11.01342197]
[1745350040467,8.77318773,1695.9,1695.5,11.01342197]
[1745350040630,9.21618284,1695.9,1695.5,11.01342197]
[1745350041335,9.21618284,1695.9,1695.5,5.91442197]
[1745350041535,9.21618284,1695.9,1695.5,11.01342197]
[1745350042463,9.21616167,1695.9,1695.5,11.01342197]
[1745350043568,3.31953981,1695.9,1695.5,11.01342197]
[1745350043773,9.21622143,1695.9,1695.5,11.01342197]
[1745350044071,4.90627158,1695.9,1695.4,0.7545]
[1745350044241,5.89787366,1695.6,1695.3,5.1]
[1745350044773,5.89746216,1695.7,1695.3,5.1]
[1745350045548,3.6313447,1695.8,1695.3,11.01442197]
[1745350045775,5.89744526,1695.7,1695.3,11.01442197]
[1745350046158,15.42569562,1695.8,1695.3,11.01442197]
[1745350046391,3.6313447,1695.8,1695.3,11.01442197]
[1745350046681,2.8765447,1695.8,1695.4,7.35370138]
[1745350046894,8.77361523,1695.8,1695.4,4.3803]
[1745350047179,2.8765447,1695.8,1695.4,4.3803]
[1745350048199,8.77360176,1695.8,1695.5,5.1]
[1745350048478,8.77360176,1695.8,1695.4,4.3803]
[1745350048665,8.77360176,1695.8,1695.4,10.5647722]
[1745350049373,5.89736521,1695.7,1695.4,9.4803]
[1745350049551,6.66806521,1695.7,1695.4,9.4803]
[1745350049750,0.7707,1695.5,1695.3,0.588]
[1745350049976,9.5452148,1695.5,1695.3,0.588]
[1745350050179,3.6472447,1695.5,1695.3,0.588]
[1745350050678,9.54532928,1695.5,1695.3,0.588]
[1745350050864,9.54532928,1695.5,1695.2,0.588]
[1745350051470,3.6472447,1695.5,1695.2,0.588]
[1745350051673,9.54531429,1695.5,1695.2,0.588]
[1745350051876,3.6472447,1695.5,1695.2,0.588]
[1745350052100,9.54521022,1695.5,1695.2,0.588]
[1745350052405,3.6472447,1695.5,1695.2,0.588]
[1745350052601,2.8765447,1695.5,1695.3,1.3803]
[1745350054317,2.8765447,1695.5,1695.3,2.6197722]
[1745350055108,2.8765447,1695.5,1695.3,1.3803]
[1745350057119,0.7707,1695.4,1695.3,0.588]
[1745350057275,2.8765447,1695.5,1695.3,0.588]
[1745350057472,3.6472447,1695.5,1695.3,0.588]
[1745350057976,5.89831308,1695.4,1695.1,3.0]
[1745350058178,5.89912541,1695.2,1694.9,1.3803]
[1745350058407,5.89949408,1695.1,1694.8,11.01442197]
[1745350059413,5.89949408,1695.1,1694.8,5.91442197]
[1745350059580,5.89949408,1695.1,1694.8,11.01442197]
[1745350059782,8.77567011,1695.2,1694.8,11.01442197]
[1745350060200,8.77567011,1695.2,1694.7,6.2902811]
[1745350060201,5.89981389,1695.0,1694.7,6.2902811]
[1745350060514,6.67051389,1695.0,1694.7,0.3979811]
[1745350060732,0.7707,1695.1,1694.8,5.91442197]
[1745350060903,2.8765447,1695.1,1694.8,6.70672197]
[1745350061079,2.8765447,1695.1,1695.0,6.70712197]
[1745350061282,2.8765447,1695.1,1695.0,11.80712197]
[1745350061678,2.8765447,1695.1,1695.0,6.70712197]
[1745350061922,2.8765447,1695.1,1695.0,11.80712197]
[1745350062714,2.8765447,1695.1,1695.0,6.70712197]
[1745350062921,2.8765447,1695.1,1695.0,12.54490139]
[1745350063799,2.82382014,1695.1,1695.0,12.54490139]
[1745350064637,2.82382014,1695.4,1695.0,12.30220139]
[1745350064918,2.82382014,1695.4,1695.3,5.91442197]
[1745350065117,2.82382014,1695.4,1695.2,11.01442197]
[1745350067379,2.82382014,1695.4,1695.2,5.91442197]
[1745350067558,2.82382014,1695.4,1695.2,11.98513417]
[1745350071668,2.82382014,1695.4,1695.2,6.88513417]
[1745350071879,2.82382014,1695.4,1695.3,5.1]
[1745350072974,2.82382014,1695.4,1695.2,5.91442197]
[1745350073178,2.82382014,1695.4,1695.3,5.1]
[1745350075175,8.72213322,1695.4,1695.3,5.1]
[1745350075482,2.82382014,1695.4,1695.2,5.91442197]
[1745350075683,2.82382014,1695.4,1695.3,5.1]
[1745350076591,3.59662014,1695.4,1695.2,0.55]
[1745350076802,3.59662014,1695.4,1695.1,11.01442197]
[1745350076803,9.49502996,1695.4,1695.1,11.01442197]
[1745350076950,3.59662014,1695.4,1695.1,11.01442197]
[1745350077553,5.89884941,1695.3,1695.1,11.01442197]
[1745350077886,5.89900896,1695.2,1695.1,11.01442197]
[1745350078449,5.89900896,1695.2,1695.1,5.91442197]
[1745350079995,2.82382014,1695.4,1695.1,6.72762197]
[1745350080288,2.82382014,1695.4,1695.3,5.91442197]
[1745350081789,2.82382014,1695.4,1695.3,7.31906417]
[1745350082183,2.82382014,1695.4,1695.2,5.91442197]
[1745350082359,2.82382014,1695.4,1695.3,5.1]
[1745350082686,8.72213322,1695.4,1695.3,5.1]
[1745350082891,2.82382014,1695.4,1695.2,5.91442197]
[1745350083193,2.82382014,1695.4,1695.2,11.01442197]
[1745350084090,8.72214001,1695.4,1695.2,11.01442197]
[1745350084691,2.82382014,1695.4,1695.2,12.25218417]
[1745350086088,8.72214268,1695.4,1695.2,12.25218417]
[1745350086417,2.82382014,1695.4,1695.2,12.25218417]
[1745350086576,3.59662014,1695.3,1694.7,0.3979811]
[1745350086772,5.89970501,1695.0,1694.9,5.91442197]
[1745350086972,5.90034629,1694.9,1694.7,6.31240307]
[1745350087206,2.82382014,1695.0,1694.7,6.31240307]
[1745350087207,8.72373196,1695.0,1694.7,6.31240307]
[1745350087414,2.82382014,1695.0,1694.9,5.91442197]
[1745350087782,2.82382014,1695.0,1694.9,12.15586417]
[1745350087977,2.82382014,1695.0,1694.9,6.50586417]
[1745350088173,2.82382014,1695.0,1694.9,11.60586417]
[1745350089002,2.82382014,1695.0,1694.8,5.1]
[1745350089201,2.82382014,1695.0,1694.8,11.01442197]
[1745350089531,3.61052014,1695.0,1694.8,11.01442197]
[1745350089814,2.82382014,1695.0,1694.8,11.01442197]
[1745350091514,2.82382014,1695.0,1694.8,11.0734197]
[1745350091678,5.89875865,1695.3,1694.8,11.0734197]
[1745350091679,2.82382014,1695.3,1695.1,0.55]
[1745350091878,2.82382014,1695.3,1695.2,5.1]
[1745350095721,2.82382014,1695.5,1695.2,5.917]
[1745350095886,2.82382014,1695.5,1695.4,5.91442197]
[1745350096399,2.82382014,1695.5,1695.4,6.51176214]
[1745350096825,2.82382014,1695.7,1695.4,7.06176214]
[1745350097120,2.82382014,1695.7,1695.6,5.91442197]
[1745350097319,2.82382014,1695.7,1695.6,11.01442197]
[1745350101024,8.7210897,1695.7,1695.6,11.01442197]
[1745350101322,2.82382014,1695.7,1695.6,11.01442197]
[1745350105843,3.64632014,1695.7,1695.6,11.01442197]
[1745350106131,3.64632014,1695.7,1695.6,12.93286417]
[1745350106132,2.82382014,1695.7,1695.6,12.93286417]
[1745350106738,2.82382014,1695.7,1695.6,16.48286417]
[1745350107246,6.6588867,1696.1,1695.6,16.48286417]
[1745350107247,2.82382014,1696.0,1695.6,16.48286417]
[1745350107441,2.82382014,1696.0,1695.8,5.91442197]
[1745350107801,8.7200851,1696.0,1695.8,5.91442197]
[1745350109942,2.82382014,1696.0,1695.8,5.91442197]
[1745350111341,8.72005408,1696.0,1695.8,5.91442197]
[1745350111640,2.82382014,1696.0,1695.8,5.91442197]
[1745350112007,2.82382014,1696.0,1695.8,6.50586417]
[1745350115223,8.72037509,1696.0,1695.7,11.01342197]
[1745350115424,5.89666314,1695.9,1695.7,11.01342197]
[1745350116019,2.82382014,1695.8,1695.7,11.01342197]
[1745350118763,1.82382014,1695.8,1695.7,11.01342197]
[1745350121371,1.82382014,1695.8,1695.7,11.01242197]
[1745350124563,1.82382014,1695.8,1695.7,13.46426417]
[1745350124863,1.82382014,1696.0,1695.7,13.46426417]
[1745350125168,1.82382014,1696.0,1695.9,5.91442197]
[1745350126434,2.60022014,1696.0,1695.9,5.91442197]
[1745350126633,8.49644655,1696.0,1695.9,5.91442197]
[1745350127262,1.82382014,1696.0,1695.9,5.91442197]
[1745350127466,1.82382014,1696.0,1695.9,11.01242197]
[1745350128468,1.82382014,1696.0,1695.9,12.11366417]
[1745350133353,7.72004655,1696.0,1695.9,11.01242197]
[1745350135282,5.89663257,1695.9,1695.8,5.91442197]
[1745350135484,5.8969218,1695.8,1695.7,11.01242197]
[1745350136791,5.89663257,1695.9,1695.7,11.01242197]
[1745350137284,5.8969218,1695.8,1695.5,6.71502197]
[1745350137478,6.6580218,1695.8,1695.7,5.098]
[1745350137987,0.7611,1695.8,1695.7,11.01242197]
[1745350138690,6.6580218,1695.8,1695.7,11.01242197]
[1745350139483,8.48184194,1695.8,1695.7,11.01242197]
[1745350140354,8.48184194,1695.8,1695.7,5.91442197]
[1745350141591,5.89744405,1695.7,1695.6,5.098]
[1745350141955,5.89761736,1695.6,1695.4,11.01242197]
[1745350142288,6.6590652,1695.5,1695.0,0.773]
[1745350142460,5.89845785,1695.4,1695.3,5.91442197]
[1745350143162,5.89907018,1695.2,1695.1,5.91442197]
[1745350143394,11.7976577,1695.3,1695.1,11.01342197]
[1745350143575,5.89870463,1695.3,1695.1,11.01342197]
[1745350143896,11.79761765,1695.3,1695.1,11.01342197]
[1745350144062,5.89870463,1695.3,1695.1,11.01342197]
[1745350144686,5.89900896,1695.2,1695.1,5.91442197]
[1745350144889,5.89900896,1695.2,1695.1,11.01342197]
[1745350145589,6.66010896,1695.2,1695.1,11.01342197]
[1745350146481,1.82382014,1695.4,1695.1,12.88776417]
[1745350146802,7.72213322,1695.4,1695.3,5.91442197]
[1745350147591,1.82382014,1695.4,1695.3,5.91442197]
[1745350148888,1.82382014,1695.4,1695.3,6.68742197]
[1745350151456,1.82382014,1695.4,1695.3,5.91442197]
[1745350151662,1.82382014,1695.4,1695.3,11.01342197]
[1745350155575,5.89900896,1695.2,1695.1,5.099]
[1745350155785,5.89900896,1695.2,1694.7,6.74479036]
[1745350155786,5.898661,1695.3,1694.7,0.3979811]
[1745350155994,12.58974695,1695.0,1694.7,6.31240307]
[1745350156296,1.82382014,1694.9,1694.7,6.31240307]
[1745350156468,7.72390511,1694.9,1694.7,6.31240307]
[1745350156670,7.72390511,1694.9,1694.7,11.41140307]
[1745350158207,1.82382014,1694.9,1694.7,11.41140307]
[1745350158407,1.82382014,1694.9,1694.7,12.21990307]
[1745350158576,1.82382014,1694.9,1694.8,1.22199031]
[1745350160884,1.82382014,1695.1,1694.9,0.55]
[1745350161087,0.79,1695.4,1695.0,5.91442197]
[1745350161308,1.82382014,1695.4,1695.2,5.91442197]
[1745350161991,1.82382014,1695.6,1695.3,0.55]
[1745350162190,1.82382014,1695.6,1695.5,5.91442197]
[1745350162402,1.82382014,1695.6,1695.5,11.01442197]
[1745350166709,1.82382014,1695.6,1695.5,11.56442197]
[1745350167131,1.82382014,1695.9,1695.7,0.7858]
[1745350167326,1.82382014,1695.9,1695.8,5.91442197]
[1745350167627,1.82382014,1695.9,1695.8,7.13444417]
[1745350170441,1.82382014,1696.1,1695.8,10.13444417]
[1745350170614,1.82382014,1696.1,1696.0,5.91442197]
[1745350172245,0.30752862,1696.5,1696.1,3.55]
[1745350172246,1.82382014,1696.3,1696.1,3.55]
[1745350172445,2.13134876,1696.5,1696.3,5.91442197]
[1745350172610,1.82382014,1696.5,1696.4,5.099]
[1745350174142,1.82382014,1696.5,1696.3,11.01242197]
[1745350178848,1.82382014,1696.5,1696.3,11.83962197]
[1745350179014,1.82382014,1696.7,1696.4,1.7339622]
[1745350179217,1.82382014,1696.7,1696.6,5.91442197]
[1745350186334,1.82382014,1696.7,1696.6,6.69012197]
[1745350186822,1.82382014,1696.7,1696.6,5.91442197]
[1745350189973,1.82382014,1696.7,1696.6,6.46442197]
[1745350190154,1.82382014,1696.7,1696.6,7.18843417]
[1745350190950,2.13122188,1697.0,1696.7,0.55]
[1745350191157,2.13122188,1697.0,1696.8,5.095]
[1745350191355,8.02411958,1697.0,1696.8,5.095]
[1745350191555,8.02411958,1697.0,1696.7,11.00942197]
[1745350191755,0.7663,1696.8,1696.7,5.095]
[1745350193557,0.7663,1696.7,1696.3,5.91442197]
[1745350193867,0.7663,1696.4,1696.3,5.91442197]
[1745350195276,0.7663,1696.4,1696.0,1.3079]
[1745350195277,0.7663,1696.4,1696.2,5.91442197]
[1745350195448,6.6612431,1696.4,1696.1,5.095]
[1745350195959,7.71920719,1696.3,1696.0,5.095]
[1745350196129,7.71920719,1696.3,1696.0,6.2717322]
[1745350196969,5.8955396,1696.2,1696.0,6.2717322]
[1745350197373,5.8955396,1696.2,1696.0,1.1767322]
[1745350198055,5.8955396,1696.2,1695.9,5.096]
[1745350198986,13.61465915,1696.3,1695.9,5.096]
[1745350199189,7.71920719,1696.3,1695.9,5.096]
[1745350199491,7.71904963,1696.3,1695.9,5.096]
[1745350200393,1.82382014,1696.3,1695.7,7.22232197]
[1745350200593,5.89676709,1695.9,1695.7,6.16260826]
[1745350200895,1.82382014,1695.9,1695.6,5.096]
[1745350201255,5.89637546,1696.0,1695.3,0.7763]
[1745350201256,5.89726956,1695.7,1695.3,0.7763]
[1745350201593,5.89912918,1695.2,1694.9,5.096]
[1745350201807,1.82382014,1695.1,1695.0,0.05899572]
[1745350202106,1.82382014,1695.1,1695.0,6.69072197]
[1745350202301,1.82382014,1695.1,1694.9,5.096]
[1745350202505,7.72328951,1695.1,1694.8,0.7763]
[1745350202658,1.82382014,1695.1,1694.8,11.78672197]
[1745350202858,1.82382014,1695.1,1694.9,1.1786722]
[1745350203287,7.72319312,1695.1,1694.7,0.3979811]
[1745350203487,7.72319312,1695.1,1694.8,5.097]
[1745350203683,8.51866796,1695.0,1694.7,0.3979811]
[1745350203890,8.51879756,1695.0,1694.7,0.3979811]
[1745350204987,2.61892014,1695.0,1694.7,0.3979811]
[1745350205188,2.61892014,1695.0,1694.7,1.53892141]
[1745350205391,8.51876023,1695.0,1694.7,1.53892141]
[1745350205697,8.51876023,1695.0,1694.7,0.3979811]
[1745350206103,2.61892014,1695.0,1694.7,0.3979811]
[1745350206299,1.82382014,1695.0,1694.7,1.7242811]
[1745350206662,1.82382014,1695.2,1694.9,3.0]
[1745350206859,1.82382014,1695.2,1695.0,12.33872197]
[1745350207075,1.82382014,1695.2,1695.0,13.57259417]
[1745350207911,1.82382014,1695.5,1695.0,13.57259417]
[1745350209578,5.89832583,1695.4,1695.0,7.6581722]
[1745350209784,5.89832583,1695.4,1695.0,1.3263]
[1745350209985,5.89832583,1695.4,1695.1,5.097]
[1745350210972,7.72195736,1695.5,1695.1,5.097]
[1745350211174,7.72190567,1695.5,1695.1,5.097]
[1745350211691,1.82382014,1695.5,1695.2,0.55]
[1745350211887,1.82382014,1695.5,1695.2,1.1147]
[1745350213205,7.72196611,1695.5,1695.3,5.098]
[1745350216480,1.82382014,1694.8,1694.7,5.4959811]
[1745350217477,1.82382014,1694.8,1694.7,0.3979811]
[1745350217794,8.53212136,1694.8,1694.7,0.3979811]
[1745350218110,4.66498536,1694.8,1694.7,0.3979811]
[1745350218307,2.63172014,1694.8,1694.7,0.3979811]
[1745350218492,0.4318412,1695.1,1694.7,12.71870307]
[1745350218493,0.8079,1695.1,1694.7,12.71870307]
[1745350218696,1.82382014,1695.2,1694.7,12.71870307]
[1745350218893,1.82382014,1695.2,1694.9,5.91442197]
[1745350219508,1.82382014,1695.2,1695.0,5.099]
[1745350219712,1.82382014,1695.2,1694.7,7.07070307]
[1745350219713,0.8079,1695.0,1694.7,0.3979811]
[1745350219911,6.70830122,1694.8,1694.7,0.3979811]
[1745350220208,6.71100323,1694.1,1693.5,5.91442197]
[1745350220394,1.82382014,1694.0,1693.5,5.91442197]
[1745350220595,1.82382014,1694.0,1693.7,5.91442197]
[1745350221210,7.72717596,1694.0,1693.5,0.7583]
[1745350221410,8.53507596,1694.0,1693.6,5.1]
[1745350221727,2.63172014,1694.0,1693.6,5.1]
[1745350222298,8.53505711,1694.0,1693.6,5.1]
[1745350222623,9.97871299,1694.0,1693.6,5.1]
[1745350222983,4.0755175,1694.0,1693.6,5.1]
[1745350223820,0.8079,1694.0,1693.6,5.1]
[1745350223983,0.8079,1694.7,1693.9,0.55]
[1745350224189,0.8079,1694.6,1693.9,3.0]
[1745350224422,0.8079,1694.6,1694.0,5.1]
[1745350224916,2.63172014,1694.8,1694.2,0.7583]
[1745350225110,8.53227413,1694.8,1694.3,5.1]
[1745350225284,2.63172014,1694.8,1694.3,5.1]
[1745350225485,2.63172014,1694.8,1694.4,6.01537389]
[1745350225692,2.63172014,1694.8,1694.4,6.77367389]
[1745350226106,2.63172014,1694.8,1694.5,5.1]
[1745350226313,2.63172014,1694.8,1694.4,6.77367389]
[1745350226513,2.63172014,1694.8,1694.5,5.1]
[1745350226919,2.63172014,1694.8,1694.4,6.77367389]
[1745350227237,0.7641,1695.1,1694.6,6.01537389]
[1745350227418,0.7641,1695.1,1694.7,5.1]
[1745350228429,6.66357717,1695.1,1694.8,5.1]
[1745350228637,0.66635772,1695.0,1694.8,5.1]
[1745350228841,1.82382014,1694.9,1694.8,5.1]
[1745350229758,1.82382014,1694.9,1694.6,6.01537389]
[1745350229935,1.82382014,1694.9,1694.8,5.1]
[1745350230122,3.30770819,1695.2,1694.8,11.87877389]
[1745350230123,1.82382014,1695.2,1694.8,11.87877389]
[1745350230332,1.82382014,1695.2,1695.0,6.01537389]
[1745350230523,0.30772422,1695.4,1695.0,6.01537389]
[1745350230730,2.58792014,1695.5,1695.2,6.01537389]
[1745350231036,2.58792014,1695.5,1695.4,6.01537389]
[1745350231210,2.58792014,1695.5,1695.4,11.33937389]
[1745350231211,1.82382014,1695.5,1695.4,11.33937389]
[1745350233725,1.82382014,1695.9,1695.4,13.02331128]
[1745350233913,1.82382014,1695.9,1695.6,6.01537389]
[1745350234242,1.82382014,1695.9,1695.8,6.01537389]
[1745350234425,1.82382014,1695.9,1695.8,11.33937389]
[1745350239059,1.82382014,1696.1,1695.8,11.88937389]
[1745350239362,1.82382014,1696.1,1696.0,6.77877389]
[1745350242838,1.82382014,1696.1,1696.0,10.86650973]
[1745350243375,1.82382014,1696.5,1696.0,10.86642657]
[1745350243557,1.82382014,1696.5,1696.4,6.01537389]
[1745350243739,1.82382014,1696.5,1696.4,11.33637389]
[1745350243945,1.82382014,1696.5,1696.4,6.01537389]
[1745350244153,1.82382014,1696.5,1696.4,11.33637389]
[1745350244557,1.82382014,1696.5,1696.4,12.54635128]
[1745350245535,1.82382014,1696.5,1696.4,11.33637389]
[1745350245735,1.82382014,1696.5,1696.4,11.33537389]
[1745350246870,1.82382014,1696.5,1696.4,6.01537389]
[1745350247069,1.82382014,1696.5,1696.4,11.33537389]
[1745350252193,1.82382014,1696.5,1696.4,6.01537389]
[1745350252477,1.82382014,1696.5,1696.4,11.33437389]
[1745350253482,1.82382014,1696.5,1696.4,12.54415128]
[1745350257287,1.82382014,1696.5,1696.4,12.44704713]
[1745350258605,1.82382014,1696.5,1696.4,16.5339488]
[1745350258804,1.82382014,1696.5,1696.4,17.3663488]
[1745350260589,1.82382014,1696.5,1696.4,13.82944713]
[1745350261177,1.82382014,1696.5,1696.4,13.76444713]
[1745350262382,1.82382014,1696.5,1696.4,17.3013488]
[1745350263314,1.82382014,1696.5,1696.4,13.76444713]
[1745350265332,1.82382014,1696.5,1696.2,0.8324]
[1745350265621,1.82382014,1696.5,1696.1,5.91826974]
[1745350265622,3.7521,1696.4,1696.1,5.91826974]
[1745350265780,0.7521,1696.3,1695.9,5.91826974]
[1745350265976,0.7521,1695.9,1695.7,5.254]
[1745350266184,1.82382014,1695.8,1695.7,5.254]
[1745350267429,1.82382014,1695.8,1695.4,0.8324]
[1745350267631,3.0,1695.6,1695.3,5.255]
[1745350267937,3.0,1695.6,1695.4,5.255]
[1745350267938,0.96494624,1695.6,1695.4,5.255]
[1745350268227,0.7521,1695.7,1695.4,5.255]
[1745350269695,3.0,1695.6,1695.4,5.255]
[1745350269932,3.44613884,1695.6,1695.4,5.255]
[1745350270517,0.44613884,1695.6,1695.4,5.255]
[1745350270713,3.7521,1695.7,1695.5,6.00044325]
[1745350272900,1.82382014,1695.6,1695.5,6.00044325]
[1745350274706,2.82211835,1695.6,1695.5,5.256]
[1745350275536,3.0,1695.5,1695.4,5.256]
[1745350276438,3.0,1695.5,1695.1,6.00044325]
[1745350276626,3.0,1695.5,1695.2,5.256]
[1745350276941,1.82382014,1695.4,1695.2,5.256]
[1745350278533,1.82382014,1695.4,1695.1,6.00044325]
[1745350278740,1.82382014,1695.4,1695.2,5.257]
[1745350279840,1.82382014,1695.3,1695.2,5.257]
[1745350289754,1.82382014,1695.3,1695.2,14.74271972]
[1745350289958,1.82382014,1695.3,1695.2,12.52692907]
[1745350290117,1.82382014,1695.3,1695.2,12.58591136]
[1745350290318,1.82382014,1695.3,1695.2,14.13946188]
[1745350290619,1.82382014,1695.3,1695.2,14.08047959]
[1745350291440,1.82382014,1695.3,1695.2,13.53047959]
[1745350291754,1.82382014,1695.3,1695.2,17.02998407]
[1745350298024,1.82382014,1695.8,1695.5,0.55]
[1745350298224,1.82382014,1695.8,1695.6,11.13722907]
[1745350302571,4.82382014,1695.8,1695.3,22.38825757]
[1745350302765,3.0,1695.6,1695.4,5.21]
[1745350304062,2.63502014,1695.7,1695.4,5.21]
[1745350304358,2.63502014,1695.7,1695.4,11.13722907]
[1745350308777,1.82382014,1695.6,1695.4,14.14524524]
[1745350308937,1.82382014,1695.6,1695.4,14.08626931]
[1745350309138,1.82382014,1695.6,1695.5,1.40862693]
[1745350316312,1.82382014,1695.6,1695.4,11.13722907]
[1745350316313,1.82382014,1695.6,1695.4,5.21]
[1745350316607,1.82382014,1695.6,1695.3,0.7638]
[1745350316814,1.82382014,1695.5,1695.4,5.21]
[1745350321023,1.82382014,1695.5,1694.8,2.95013711]
[1745350321024,2.60642014,1695.4,1694.9,6.75872907]
[1745350321228,1.82382014,1695.3,1695.0,5.21]
[1745350321724,1.82382014,1695.3,1694.8,26.19772907]
[1745350321898,1.82382014,1695.3,1695.1,5.21]
[1745350322099,0.7826,1695.4,1695.1,5.21]
[1745350322100,1.82382014,1695.2,1695.1,5.21]
[1745350322310,1.82382014,1695.2,1695.1,5.154]
[1745350322520,2.60642014,1695.2,1695.1,5.154]
[1745350323629,1.82382014,1695.2,1695.1,5.155]
[1745350324298,2.2698828,1695.2,1695.1,5.155]
[1745350326392,2.2698828,1695.2,1694.7,0.8315]
[1745350326393,1.82382014,1695.1,1694.7,0.8315]
[1745350326590,2.60642014,1695.1,1694.8,5.155]
[1745350327030,1.82382014,1695.0,1694.8,5.155]
[1745350327200,1.82382014,1695.0,1694.5,28.31983077]
[1745350327201,0.7826,1694.9,1694.5,19.442]
[1745350327526,1.82382014,1695.0,1694.7,5.92722907]
[1745350332304,1.22866266,1695.2,1694.8,0.55]
[1745350332305,1.82382014,1694.9,1694.8,0.55]
[1745350332506,1.82382014,1694.9,1694.8,10.23322968]
[1745350334889,1.82382014,1694.9,1694.8,6.5118]
[1745350335329,1.82382014,1694.9,1694.8,7.75570291]
[1745350335532,1.82382014,1694.9,1694.8,6.5118]
[1745350335705,1.82382014,1694.9,1694.8,1.3558]
[1745350335907,1.82382014,1694.9,1694.8,6.5118]
[1745350336094,1.82382014,1694.9,1694.8,5.156]
[1745350336291,1.82382014,1694.9,1694.6,9.683527]
[1745350336491,1.82382014,1694.9,1694.7,6.1243527]
[1745350336798,1.82382014,1694.9,1694.8,6.47722907]
[1745350337391,1.82382014,1694.9,1694.8,6.53622585]
[1745350337595,1.82382014,1694.9,1694.8,9.48642646]
[1745350337830,1.82382014,1694.9,1694.8,10.23322968]
[1745350338139,1.82382014,1694.9,1694.8,6.23678072]
[1745350339934,1.82382014,1695.3,1695.2,0.55]
[1745350340140,1.82382014,1695.3,1695.2,5.706]
[1745350340503,2.58132014,1695.3,1694.8,1.93078011]
[1745350340836,2.58132014,1695.3,1694.7,1.7741527]
[1745350340837,2.58132014,1695.3,1695.1,5.156]
[1745350341409,2.58132014,1695.3,1694.7,6.73302907]
[1745350341616,3.77353792,1695.3,1694.8,5.156]
[1745350343338,2.58132014,1695.3,1694.8,8.16507687]
[1745350343846,1.82382014,1695.3,1695.1,0.55]
[1745350344007,1.82382014,1695.3,1695.2,5.156]
[1745350345412,2.58132014,1695.3,1695.2,5.156]
[1745350345612,2.58132014,1695.3,1694.9,5.92722907]
[1745350345818,2.58132014,1695.3,1695.0,5.156]
[1745350346012,2.58132014,1695.3,1694.8,0.55]
[1745350346217,1.82382014,1695.2,1695.1,5.156]
[1745350348142,1.82382014,1695.2,1695.1,12.43902907]
[1745350348312,1.82382014,1695.2,1694.9,6.73302907]
[1745350348516,1.82382014,1695.2,1695.0,5.156]
[1745350348931,2.58132014,1695.2,1695.0,5.156]
[1745350350553,1.82382014,1695.2,1695.0,6.26432291]
[1745350350855,1.82382014,1695.1,1695.0,6.81432291]
[1745350352501,1.82382014,1695.1,1695.0,5.706]
[1745350353550,1.82382014,1695.1,1695.0,11.63322907]
[1745350353953,1.82382014,1695.1,1695.0,15.38888157]
[1745350354264,1.82382014,1695.1,1695.0,12.43902907]
[1745350356367,1.82382014,1695.1,1695.0,15.38888157]
[1745350356570,1.82382014,1695.1,1695.0,17.22276143]
[1745350356783,1.82382014,1695.1,1695.0,14.27290893]
[1745350357280,1.82382014,1695.1,1695.0,17.22276143]
[1745350357492,1.82382014,1695.1,1695.0,14.27290893]
[1745350358561,1.82382014,1695.1,1695.0,17.22276143]
[1745350362507,1.82382014,1695.1,1695.0,1.83387986]
[1745350362785,1.82382014,1695.1,1695.0,5.705]
[1745350363999,1.82382014,1695.1,1695.0,0.55]
[1745350364151,1.82382014,1695.1,1695.0,5.705]
[1745350364347,2.65092014,1695.1,1695.0,5.155]
[1745350365962,3.09103909,1695.1,1695.0,5.155]
[1745350366163,3.400143,1695.1,1695.0,5.155]
[1745350366985,1.82382014,1695.1,1695.0,5.705]
[1745350367707,1.82382014,1695.1,1695.0,8.6548525]
[1745350367917,1.82382014,1695.1,1695.0,15.42557001]
[1745350368205,1.82382014,1695.1,1695.0,15.36658157]
[1745350370105,1.82382014,1695.1,1695.0,12.41672907]
[1745350370608,1.82382014,1695.1,1695.0,16.90325146]
[1745350370813,1.82382014,1695.1,1695.0,16.90425146]
[1745350371481,1.82382014,1695.1,1695.0,16.90325146]
[1745350372912,1.82382014,1695.1,1695.0,11.74825146]
[1745350373113,1.82382014,1695.1,1695.0,16.90325146]
[1745350374318,1.82382014,1695.1,1695.0,10.97602239]
[1745350374615,1.82382014,1695.1,1695.0,7.24166989]
[1745350374798,1.82382014,1695.1,1695.0,10.19152239]
[1745350380739,1.82382014,1695.1,1695.0,29.63352239]
[1745350381905,1.82382014,1695.1,1695.0,2.08666989]
[1745350382106,2.63652014,1695.1,1694.7,9.68798634]
[1745350382341,2.63652014,1695.1,1694.8,24.597]
[1745350382510,2.63652014,1695.1,1694.9,0.55]
[1745350382712,2.63652014,1695.1,1694.7,0.8105]
[1745350382908,2.63652014,1695.1,1694.8,5.115]
[1745350383239,1.82382014,1695.0,1694.6,6.73772907]
[1745350383402,0.8127,1694.9,1694.4,3.76130112]
[1745350383602,1.82382014,1694.8,1694.5,5.115]
[1745350384230,1.82382014,1694.7,1694.5,5.115]
[1745350385943,0.8127,1694.6,1694.4,19.442]
[1745350386105,0.8127,1694.6,1694.5,5.115]
[1745350387845,1.82382014,1694.7,1694.5,5.115]
[1745350388819,1.82382014,1694.6,1694.5,5.115]
[1745350393251,1.82382014,1694.6,1694.5,8.61572292]
[1745350393460,1.82382014,1694.6,1694.5,9.35858205]
[1745350393611,1.82382014,1694.6,1694.5,5.665]
[1745350394114,1.82382014,1694.6,1694.5,5.115]
[1745350394742,1.82382014,1694.6,1694.2,19.447]
[1745350394956,1.82382014,1694.6,1693.9,6.73772907]
[1745350395250,1.82382014,1694.5,1694.0,8.06848697]
[1745350395454,0.8127,1694.4,1694.0,5.117]
[1745350395656,0.8127,1694.4,1694.2,2.95124328]
[1745350395856,0.8127,1694.4,1694.1,0.55]
[1745350395857,0.8127,1694.4,1694.1,1.3605]
[1745350396533,0.8127,1694.4,1694.1,0.55]
[1745350396857,6.33516131,1694.8,1693.7,9.68976242]
[1745350396858,0.8127,1694.2,1693.7,9.68976242]
[1745350397055,0.8127,1694.2,1693.7,6.73772907]
[1745350397258,0.8127,1694.2,1693.8,5.117]
[1745350397552,0.8127,1694.2,1693.9,6.47722907]
[1745350397754,0.8127,1694.2,1693.9,9.42893996]